bitfinex-derivatives/quotes_SOLF0:USTF0_20250117
["timestamp","ask_amount","ask_price","bid_price","bid_amount"]
[1737128481047,13.2647312,218.43,218.3,16.2345312]
[1737128481848,13.2647312,218.43,218.37,4.5785]
[1737128482038,13.2647312,218.4,218.37,4.5785]
[1737128482244,17.8423312,218.43,218.4,4.578]
[1737128482448,13.2647312,218.43,218.4,4.578]
[1737128482949,13.2647312,218.43,218.39,4.5782]
[1737128482950,17.8421312,218.43,218.39,4.5782]
[1737128483250,13.2647312,218.43,218.3,2.9698]
[1737128483444,13.2647312,218.4,218.3,2.9698]
[1737128483651,13.2647312,218.37,218.3,2.9698]
[1737128483846,13.2647312,218.34,218.21,6.34597158]
[1737128484044,13.2647312,218.31,218.21,6.34597158]
[1737128484246,13.2647312,218.28,218.21,6.34597158]
[1737128484446,4.5811,218.26,218.21,10.92787158]
[1737128484750,13.2647312,218.31,218.2,3.0885]
[1737128484941,14.7046312,218.34,218.21,13.2647312]
[1737128485341,13.2647312,218.37,218.21,13.2647312]
[1737128485549,13.2647312,218.37,218.24,13.2647312]
[1737128486649,13.2647312,218.4,218.24,13.2647312]
[1737128486850,13.2647312,218.4,218.36,4.5787]
[1737128487449,4.5779,218.41,218.36,4.5787]
[1737128487650,21.26423425,218.42,218.34,4.5791]
[1737128489553,4.5784,218.39,218.34,4.5791]
[1737128489942,21.26423425,218.42,218.29,5.44]
[1737128490347,21.26423425,218.42,218.3,3.0552]
[1737128490651,1.4399,218.43,218.3,3.0552]
[1737128491151,1.4399,218.43,218.4,4.578]
[1737128491547,4.5771,218.45,218.4,4.578]
[1737128491753,4.5763,218.48,218.3,3.0552]
[1737128492147,21.26423425,218.5,218.33,21.26423425]
[1737128492352,21.26423425,218.5,218.34,1.453]
[1737128493048,21.26423425,218.5,218.38,4.5783]
[1737128493248,21.26423425,218.5,218.39,6.9363]
[1737128493552,21.26423425,218.5,218.4,1.4403]
[1737128493753,21.26423425,218.5,218.47,4.5763]
[1737128494150,4.5764,218.48,218.42,4.5774]
[1737128494345,4.5764,218.48,218.4,1.4403]
[1737128494548,21.26423425,218.5,218.4,1.4403]
[1737128494850,4.5772,218.44,218.34,6.893]
[1737128495051,21.26423425,218.46,218.34,6.893]
[1737128495251,1.4996,218.45,218.34,5.44]
[1737128495454,1.4996,218.45,218.37,4.5785]
[1737128496556,4.5773,218.44,218.37,4.5786]
[1737128496852,4.5773,218.44,218.34,5.44]
[1737128497253,4.5773,218.44,218.39,4.578]
[1737128497449,4.5773,218.44,218.34,5.44]
[1737128498156,4.5773,218.44,218.39,4.578]
[1737128498752,1.4996,218.45,218.34,5.44]
[1737128499559,4.5773,218.44,218.34,5.44]
[1737128500156,4.5773,218.44,218.39,4.5781]
[1737128501156,4.5773,218.44,218.34,5.44]
[1737128501157,4.5773,218.44,218.4,4.578]
[1737128502158,6.0761,218.45,218.41,4.5773]
[1737128502359,1.4996,218.45,218.34,5.44]
[1737128503060,4.577,218.43,218.39,4.5776]
[1737128503461,1.4996,218.45,218.34,5.44]
[1737128503657,4.5773,218.42,218.34,5.44]
[1737128504157,4.5773,218.42,218.39,4.5778]
[1737128508460,1.4996,218.45,218.34,5.44]
[1737128508655,4.5776,218.4,218.36,4.5783]
[1737128508856,21.26423425,218.42,218.32,3.0258]
[1737128509357,4.5774,218.41,218.35,4.5786]
[1737128509558,21.26423425,218.42,218.32,3.0258]
[1737128509956,4.5774,218.41,218.32,3.0258]
[1737128510258,1.4996,218.45,218.32,3.0258]
[1737128511260,4.5769,218.43,218.32,3.0258]
[1737128511563,13.28749553,218.42,218.32,3.0258]
[1737128511753,17.86469553,218.42,218.35,4.5786]
[1737128511953,13.28749553,218.39,218.28,6.9867]
[1737128512153,13.28749553,218.36,218.24,2.9907]
[1737128512353,13.28749553,218.33,218.27,4.5801]
[1737128512560,13.28749553,218.33,218.24,2.9907]
[1737128512760,13.28749553,218.3,218.24,2.9907]
[1737128513667,13.28749553,218.3,218.19,6.9716]
[1737128514664,4.5803,218.27,218.19,6.9716]
[1737128515065,13.28749553,218.3,218.19,6.9716]
[1737128515256,4.58,218.29,218.23,4.581]
[1737128515963,21.28514253,218.31,218.19,5.42]
[1737128516161,21.28514253,218.31,218.22,4.5813]
[1737128516568,4.5803,218.28,218.22,4.5813]
[1737128516858,21.28514253,218.27,218.1,6.35272814]
[1737128517060,21.28514253,218.23,218.11,6.9669]
[1737128517258,21.28514253,218.23,218.1,9.39702814]
[1737128517565,4.5816,218.21,218.1,9.39702814]
[1737128517860,21.28514253,218.23,218.17,4.5824]
[1737128518359,21.28514253,218.23,218.13,4.583]
[1737128518564,21.28514253,218.23,218.1,8.4643]
[1737128518964,4.5818,218.2,218.15,4.5828]
[1737128519361,25.86624253,218.23,218.1,8.4643]
[1737128519658,25.86624253,218.23,218.18,4.5821]
[1737128520265,25.86624253,218.23,218.1,8.4643]
[1737128521261,25.86624253,218.23,218.17,4.5822]
[1737128521566,4.5814,218.22,218.17,4.5822]
[1737128521762,21.28514253,218.19,218.1,3.0443]
[1737128521966,21.28514253,218.19,218.06,5.42]
[1737128522155,4.5815,218.21,218.06,5.42]
[1737128522465,1.5116,218.23,218.17,4.5822]
[1737128522663,4.5814,218.22,218.17,4.5822]
[1737128523169,4.5815,218.21,218.17,4.5822]
[1737128523860,4.5815,218.21,218.16,4.5825]
[1737128524259,4.5818,218.2,218.16,4.5825]
[1737128524460,1.5116,218.23,218.17,4.5823]
[1737128524665,1.5116,218.23,218.09,21.28514253]
[1737128525160,1.5116,218.23,218.06,5.42]
[1737128525464,1.5116,218.23,218.07,5.42]
[1737128525665,21.28514253,218.2,218.07,5.42]
[1737128526361,21.28514253,218.28,218.09,21.28514253]
[1737128526668,21.28514253,218.28,218.13,21.28514253]
[1737128526861,21.28514253,218.28,218.25,4.5805]
[1737128527169,1.4677,218.34,218.18,5.42]
[1737128527170,4.5797,218.3,218.18,5.42]
[1737128527467,21.28514253,218.32,218.22,4.5813]
[1737128527761,25.86444253,218.32,218.18,5.42]
[1737128527962,1.4677,218.34,218.18,5.42]
[1737128529167,21.28514253,218.36,218.3,4.5796]
[1737128529363,21.28514253,218.36,218.18,5.42]
[1737128530066,25.86364253,218.36,218.18,5.42]
[1737128530567,21.28514253,218.36,218.23,4.581]
[1737128530768,21.28514253,218.36,218.24,3.0774]
[1737128531067,4.5788,218.35,218.24,3.0774]
[1737128531577,21.28514253,218.36,218.24,3.0774]
[1737128531773,21.28514253,218.36,218.32,4.5791]
[1737128532163,1.4406,218.39,218.33,4.579]
[1737128532164,6.0186,218.39,218.33,4.579]
[1737128532466,1.4406,218.39,218.24,3.0774]
[1737128533167,1.4406,218.39,218.25,1.5677]
[1737128533368,6.0184,218.39,218.34,4.5788]
[1737128534169,4.578,218.38,218.34,4.5788]
[1737128534564,21.28514253,218.35,218.14,5.42]
[1737128534769,21.28514253,218.29,218.23,4.581]
[1737128535171,21.28514253,218.29,218.25,4.5805]
[1737128535373,4.5797,218.3,218.19,2.9574]
[1737128535873,22.72574253,218.39,218.19,24.24254253]
[1737128536275,22.72574253,218.39,218.23,21.28514253]
[1737128536475,22.72574253,218.39,218.24,1.5796]
[1737128536774,22.72574253,218.39,218.25,5.42]
[1737128536971,27.30354253,218.39,218.34,4.5787]
[1737128537172,22.72574253,218.39,218.25,5.42]
[1737128537674,21.28514253,218.35,218.25,5.42]
[1737128538775,4.5782,218.37,218.33,4.579]
[1737128538973,22.72574253,218.39,218.33,4.579]
[1737128539364,4.5781,218.38,218.34,4.5788]
[1737128540472,4.5784,218.36,218.25,5.42]
[1737128541176,4.5784,218.36,218.31,4.5793]
[1737128541371,4.5784,218.36,218.25,5.42]
[1737128541682,22.72574253,218.39,218.25,5.42]
[1737128542069,21.28514253,218.39,218.25,5.42]
[1737128543374,4.5795,218.31,218.27,4.5803]
[1737128543579,21.28514253,218.31,218.19,4.533]
[1737128543780,21.28514253,218.31,218.2,5.42]
[1737128544176,4.5797,218.3,218.2,5.42]
[1737128544382,21.28514253,218.31,218.19,9.953]
[1737128544578,21.28514253,218.31,218.19,4.533]
[1737128544882,21.28514253,218.31,218.2,5.42]
[1737128545885,21.28514253,218.31,218.27,4.5802]
[1737128546075,21.28514253,218.31,218.19,9.953]
[1737128546482,4.58,218.29,218.24,4.5807]
[1737128547089,4.58,218.29,218.25,4.5806]
[1737128547385,21.28514253,218.31,218.25,4.5806]
[1737128547689,21.28514253,218.31,218.19,4.533]
[1737128548989,1.442,218.34,218.19,4.533]
[1737128549184,4.5797,218.3,218.26,4.5805]
[1737128549382,1.442,218.34,218.19,4.533]
[1737128551390,4.5792,218.33,218.29,4.5797]
[1737128551990,6.0209,218.34,218.3,4.5795]
[1737128552190,1.442,218.34,218.19,4.533]
[1737128552390,4.5796,218.31,218.23,4.581]
[1737128552689,1.442,218.34,218.19,4.533]
[1737128552889,1.442,218.34,218.26,4.5803]
[1737128552890,4.5797,218.3,218.26,4.5803]
[1737128553292,1.442,218.34,218.19,4.533]
[1737128553590,4.5799,218.29,218.19,4.533]
[1737128553888,1.442,218.34,218.19,4.533]
[1737128554089,4.5797,218.3,218.27,4.5802]
[1737128554393,1.442,218.34,218.19,4.533]
[1737128554690,1.442,218.34,218.2,5.42]
[1737128554887,4.5794,218.32,218.2,5.42]
[1737128555287,1.442,218.34,218.2,5.42]
[1737128555586,13.29829583,218.33,218.2,5.42]
[1737128556292,13.29829583,218.21,218.09,75.72077419]
[1737128556489,13.29829583,218.24,218.13,3.0266]
[1737128556691,13.29829583,218.27,218.13,16.32489583]
[1737128557282,21.28586599,218.31,218.24,4.5809]
[1737128558190,21.28586599,218.31,218.19,5.42]
[1737128558689,25.86536599,218.31,218.25,4.5807]
[1737128559291,4.5801,218.28,218.19,5.42]
[1737128559493,21.28586599,218.31,218.19,5.42]
[1737128559795,25.86556599,218.31,218.25,4.5806]
[1737128560493,21.28586599,218.31,218.25,4.5806]
[1737128560689,4.5797,218.3,218.25,4.5806]
[1737128561291,25.86536599,218.31,218.22,4.5812]
[1737128561492,25.86536599,218.31,218.19,5.42]
[1737128561692,21.28586599,218.31,218.19,5.42]
[1737128561895,4.5803,218.27,218.19,5.42]
[1737128563199,4.5803,218.27,218.22,4.5812]
[1737128563797,4.5803,218.27,218.23,4.5811]
[1737128567300,4.5803,218.27,218.19,5.42]
[1737128567499,4.5803,218.27,218.24,4.5808]
[1737128568102,21.28586599,218.31,218.24,4.5808]
[1737128568303,4.5801,218.28,218.24,4.5808]
[1737128569005,4.5806,218.26,218.19,5.42]
[1737128569206,21.28586599,218.27,218.13,3.0266]
[1737128569401,21.28586599,218.27,218.14,5.42]
[1737128569906,25.86616599,218.27,218.14,5.42]
[1737128571097,25.86616599,218.27,218.23,4.581]
[1737128571402,25.86616599,218.27,218.14,5.42]
[1737128571603,21.28586599,218.27,218.14,5.42]
[1737128571908,21.28586599,218.31,218.14,5.42]
[1737128573313,4.5803,218.28,218.25,4.5807]
[1737128573514,1.442,218.34,218.16,21.28586599]
[1737128573901,1.442,218.34,218.17,1.4907]
[1737128574109,1.442,218.34,218.18,9.1642]
[1737128575212,1.442,218.34,218.3,4.5795]
[1737128575711,1.442,218.34,218.25,5.42]
[1737128576116,6.0208,218.34,218.25,5.42]
[1737128576512,1.442,218.34,218.25,5.42]
[1737128576906,1.442,218.34,218.32,4.5791]
[1737128577807,1.442,218.34,218.33,4.579]
[1737128578012,1.442,218.34,218.26,2.9958]
[1737128578413,1.442,218.34,218.31,4.5793]
[1737128578913,1.442,218.34,218.32,4.5791]
[1737128579808,1.442,218.34,218.33,4.579]
[1737128580412,1.442,218.34,218.32,4.5792]
[1737128580612,13.29360199,218.36,218.26,2.9958]
[1737128580814,13.29360199,218.39,218.26,16.28940199]
[1737128581015,13.29360199,218.39,218.37,4.5782]
[1737128581215,13.29360199,218.39,218.26,4.4668]
[1737128581413,13.29360199,218.36,218.26,4.4668]
[1737128582013,13.29360199,218.39,218.26,17.76040199]
[1737128583317,13.29360199,218.42,218.29,13.29360199]
[1737128583615,14.75460199,218.45,218.32,13.29360199]
[1737128583915,19.33120199,218.45,218.32,13.29360199]
[1737128584110,14.75460199,218.45,218.32,13.29360199]
[1737128584329,13.29360199,218.48,218.36,0.5]
[1737128584517,13.29360199,218.48,218.37,8.5577]
[1737128585011,13.29360199,218.48,218.44,4.5766]
[1737128585216,13.29360199,218.48,218.37,8.5577]
[1737128585412,13.29360199,218.51,218.46,4.5763]
[1737128585618,13.29360199,218.51,218.37,10.1404]
[1737128586415,13.29360199,218.51,218.38,13.29360199]
[1737128586719,13.29360199,218.51,218.44,4.5767]
[1737128587220,13.29360199,218.51,218.42,4.5771]
[1737128587819,13.29360199,218.51,218.37,10.1404]
[1737128588015,13.29360199,218.48,218.37,10.1404]
[1737128588417,4.5765,218.45,218.38,5.4]
[1737128588711,13.29360199,218.45,218.38,5.4]
[1737128589112,4.5767,218.44,218.38,5.4]
[1737128590717,13.29360199,218.45,218.38,5.4]
[1737128591322,4.577,218.43,218.38,5.4]
[1737128591515,13.29360199,218.42,218.36,0.5]
[1737128592324,4.5775,218.41,218.36,0.5]
[1737128592524,13.29360199,218.42,218.36,0.5]
[1737128592825,4.5782,218.37,218.36,0.5]
[1737128596123,13.29360199,218.42,218.36,0.5]
[1737128596628,4.5782,218.37,218.36,0.5]
[1737128600031,4.5797,218.3,218.27,1.5038]
[1737128600230,4.5797,218.3,218.26,91.14]
[1737128601529,13.29360199,218.33,218.26,91.14]
[1737128601530,4.5799,218.29,218.26,91.14]
[1737128601731,13.29360199,218.33,218.22,6.9209]
[1737128601941,13.29360199,218.3,218.22,6.9209]
[1737128602239,13.29360199,218.3,218.22,1.5209]
[1737128602540,13.29360199,218.27,218.22,1.5209]
[1737128602736,4.581,218.24,218.22,1.5209]
[1737128603039,13.29360199,218.27,218.2,5.4]
[1737128603239,4.5818,218.2,218.17,5.4]
[1737128603643,13.29360199,218.24,218.17,5.4]
[1737128603942,13.29360199,218.3,218.17,5.4]
[1737128604740,4.5807,218.26,218.2,4.5816]
[1737128607244,4.5807,218.26,218.18,5.4]
[1737128607445,4.5807,218.26,218.21,4.5815]
[1737128607740,13.29360199,218.24,218.16,3.018]
[1737128607935,13.29360199,218.24,218.17,4.5823]
[1737128608439,4.5815,218.22,218.17,4.5823]
[1737128608641,13.29360199,218.24,218.17,4.5823]
[1737128608837,4.5815,218.21,218.17,4.5823]
[1737128609344,13.29360199,218.21,218.16,1.4338]
[1737128609542,13.29360199,218.21,218.1,2.9667]
[1737128609847,13.29360199,218.21,218.1,8.3667]
[1737128610246,1.4636,218.29,218.1,2.9667]
[1737128610442,13.29360199,218.21,218.1,8.3667]
[1737128611346,4.5823,218.18,218.13,4.5832]
[1737128612742,4.5823,218.18,218.1,8.3667]
[1737128612946,4.5823,218.18,218.14,4.5829]
[1737128613647,13.29360199,218.21,218.14,4.5829]
[1737128613847,4.582,218.19,218.14,4.5829]
[1737128614051,13.29360199,218.17,218.14,4.5829]
[1737128614251,13.29360199,218.2,218.14,4.5829]
[1737128614448,13.29360199,218.17,218.05,1.5735]
[1737128614647,13.29360199,218.14,218.05,1.5735]
[1737128614848,13.29360199,218.17,218.05,1.5735]
[1737128615047,13.29360199,218.23,218.08,13.29360199]
[1737128615255,13.29360199,218.23,218.05,1.5735]
[1737128615256,13.29360199,218.23,218.11,13.29360199]
[1737128615552,13.29360199,218.26,218.21,4.5813]
[1737128615753,13.29360199,218.26,218.16,5.4]
[1737128616351,4.5807,218.25,218.16,5.4]
[1737128616553,13.29360199,218.26,218.16,5.4]
[1737128616853,17.87410199,218.26,218.19,4.582]
[1737128617051,17.87410199,218.26,218.16,5.4]
[1737128617454,4.5809,218.24,218.19,4.582]
[1737128617650,13.29360199,218.26,218.16,5.4]
[1737128618355,4.5807,218.25,218.19,4.582]
[1737128618556,14.75720199,218.29,218.17,13.29360199]
[1737128619057,4.5802,218.28,218.23,4.581]
[1737128620153,14.75720199,218.29,218.16,5.4]
[1737128620358,13.29360199,218.26,218.16,5.4]
[1737128620856,14.75720199,218.29,218.16,5.4]
[1737128621057,4.5807,218.26,218.16,5.4]
[1737128621555,14.75720199,218.29,218.16,18.69360199]
[1737128621759,19.33720199,218.29,218.24,4.5808]
[1737128621950,14.75720199,218.29,218.16,20.13310199]
[1737128622155,4.5802,218.28,218.23,4.5809]
[1737128622354,4.5802,218.28,218.16,20.13310199]
[1737128622753,4.5802,218.28,218.24,4.5809]
[1737128622958,19.33710199,218.29,218.16,20.13310199]
[1737128623460,4.5801,218.28,218.16,20.13310199]
[1737128623854,14.75720199,218.29,218.16,6.8395]
[1737128624051,4.581,218.24,218.16,6.8395]
[1737128625155,4.5807,218.26,218.16,5.4]
[1737128625356,14.75720199,218.29,218.16,5.4]
[1737128625751,13.29360199,218.23,218.15,1.4772]
[1737128626161,13.29360199,218.26,218.15,1.4772]
[1737128627160,4.5807,218.25,218.2,4.5816]
[1737128627558,14.75720199,218.29,218.16,13.29360199]
[1737128627756,4.5801,218.28,218.24,4.5808]
[1737128627956,14.75720199,218.29,218.16,13.29360199]
[1737128629058,19.33730199,218.29,218.24,4.5809]
[1737128629256,13.29360199,218.29,218.24,4.5809]
[1737128629657,13.29360199,218.29,218.25,4.5805]
[1737128630168,13.29360199,218.29,218.19,4.5818]
[1737128630359,4.5796,218.3,218.16,13.29360199]
[1737128630560,17.87300199,218.32,218.19,13.29360199]
[1737128630766,17.87300199,218.32,218.27,4.5801]
[1737128630959,13.29360199,218.32,218.22,5.4]
[1737128631267,13.29360199,218.32,218.27,4.5802]
[1737128631467,13.29360199,218.32,218.22,5.4]
[1737128631857,4.5797,218.3,218.25,4.5805]
[1737128632266,13.29360199,218.32,218.25,4.5805]
[1737128632468,4.5795,218.31,218.27,4.5802]
[1737128634470,13.29360199,218.32,218.28,4.58]
[1737128634766,1.4968,218.34,218.23,1.5781]
[1737128634967,4.5792,218.32,218.28,4.58]
[1737128635568,4.5791,218.33,218.23,1.5781]
[1737128635763,13.29360199,218.35,218.24,1.5674]
[1737128636367,13.29360199,218.32,218.24,1.5674]
[1737128636969,13.29360199,218.29,218.23,1.5781]
[1737128637171,13.29360199,218.29,218.21,5.4]
[1737128638264,4.5803,218.27,218.21,5.4]
[1737128638467,13.29360199,218.29,218.21,5.4]
[1737128638668,4.5805,218.26,218.22,4.5811]
[1737128638971,13.29360199,218.29,218.21,5.4]
[1737128639677,13.29360199,218.29,218.22,4.5813]
[1737128640075,4.581,218.24,218.21,5.4]
[1737128640268,13.29360199,218.26,218.21,5.4]
[1737128640576,13.29360199,218.26,218.17,2.9038]
[1737128640767,4.5813,218.23,218.17,7.486]
[1737128640972,13.29360199,218.26,218.17,7.486]
[1737128641174,13.29360199,218.23,218.17,7.486]
[1737128641679,13.29360199,218.23,218.16,5.4]
[1737128641874,13.29360199,218.2,218.11,3.0235]
[1737128642076,13.29360199,218.2,218.11,8.4235]
[1737128642572,4.5825,218.17,218.12,4.5834]
[1737128642773,13.29360199,218.17,218.11,3.0235]
[1737128643378,4.5828,218.15,218.11,7.6071]
[1737128643775,4.5828,218.15,218.11,4.5836]
[1737128644082,4.583,218.14,218.09,4.584]
[1737128644382,13.29360199,218.14,218.07,5.4]
[1737128644778,13.29360199,218.17,218.07,5.4]
[1737128647180,13.29360199,218.17,218.1,4.5838]
[1737128648084,4.583,218.15,218.1,4.5838]
[1737128648284,13.29360199,218.17,218.07,5.4]
[1737128648684,17.87620199,218.17,218.07,5.4]
[1737128648887,17.87620199,218.17,218.12,4.5833]
[1737128649283,17.87620199,218.17,218.07,5.4]
[1737128650086,17.87620199,218.17,218.13,4.583]
[1737128653391,13.29360199,218.17,218.07,5.4]
[1737128653595,8.5229622,218.13,218.07,5.4]
[1737128653795,8.5229622,218.15,218.08,8.5229622]
[1737128654091,8.5229622,218.15,218.12,4.5833]
[1737128654492,8.5229622,218.13,218.12,4.5833]
[1737128654999,8.5229622,218.13,218.07,5.4]
[1737128655195,8.5229622,218.13,218.04,11.4431622]
[1737128655491,8.5229622,218.09,218.04,2.9202]
[1737128655688,8.5229622,218.09,218.04,8.3002]
[1737128656894,8.5229622,218.11,218.09,4.584]
[1737128657090,8.5229622,218.11,218.04,8.3002]
[1737128657091,8.5229622,218.13,218.04,16.8231622]
[1737128657295,8.5229622,218.13,218.07,8.5229622]
[1737128657596,4.5832,218.14,218.04,8.3002]
[1737128657893,13.31899689,218.12,218.04,8.3002]
[1737128658091,4.5843,218.08,218.04,4.5849]
[1737128658298,13.31899689,218.09,218.0,5.38]
[1737128659392,13.31899689,218.12,218.0,5.38]
[1737128659795,17.90249689,218.12,218.07,4.5844]
[1737128660099,13.31899689,218.15,218.01,13.31899689]
[1737128660794,13.31899689,218.12,218.0,5.38]
[1737128661296,17.90259689,218.12,218.07,4.5843]
[1737128661595,13.31899689,218.12,218.01,13.31899689]
[1737128661999,13.31899689,218.12,218.09,4.5839]
[1737128663498,13.31899689,218.12,218.0,5.38]
[1737128663697,4.5837,218.11,218.0,5.38]
[1737128664597,4.5839,218.1,217.98,13.31899689]
[1737128664803,13.31899689,218.09,217.96,4.4464]
[1737128665004,17.90389689,218.05,218.0,4.5858]
[1737128665204,13.31899689,218.05,218.0,4.5858]
[1737128665405,13.31899689,218.05,217.95,91.14]
[1737128666303,13.31899689,217.99,217.92,4.5876]
[1737128666607,13.31899689,217.99,217.89,1.5862]
[1737128666608,13.31899689,217.99,217.89,5.38]
[1737128667207,4.5864,217.98,217.92,4.5876]
[1737128668507,4.5864,217.98,217.93,4.5874]
[1737128668708,13.31899689,217.99,217.89,5.38]
[1737128668908,13.31899689,217.99,217.9,5.38]
[1737128669805,13.31899689,218.02,217.9,5.38]
[1737128670002,13.31899689,218.02,217.93,4.5873]
[1737128670210,13.31899689,218.02,217.9,5.38]
[1737128670409,13.31899689,217.99,217.9,5.38]
[1737128670610,13.31899689,217.99,217.95,4.5869]
[1737128670804,13.31899689,217.99,217.9,5.38]
[1737128671115,13.31899689,217.99,217.92,4.5875]
[1737128671312,13.31899689,217.99,217.9,5.38]
[1737128671615,13.31899689,217.99,217.94,4.587]
[1737128671817,13.31899689,217.99,217.9,5.38]
[1737128672404,13.31899689,218.02,217.9,5.38]
[1737128672810,13.31899689,218.02,217.9,18.69899689]
[1737128673013,13.31899689,218.02,217.99,4.586]
[1737128673213,13.31899689,218.02,217.9,18.69899689]
[1737128673414,17.90449689,218.02,217.96,4.5866]
[1737128673714,13.31899689,218.02,217.9,5.38]
[1737128674015,1.5209,218.01,217.9,5.38]
[1737128674323,1.5209,218.01,217.94,4.587]
[1737128674814,1.5209,218.01,217.9,5.38]
[1737128675126,4.5862,217.99,217.95,4.5869]
[1737128676913,4.5862,217.99,217.89,5.38]
[1737128677214,1.5209,218.01,217.89,5.38]
[1737128677617,1.5209,218.01,217.92,4.5875]
[1737128677810,1.5209,218.01,217.89,5.38]
[1737128678614,6.1068,218.01,217.97,4.5865]
[1737128680215,6.1068,218.01,217.99,4.5861]
[1737128680216,1.5209,218.01,217.99,4.5861]
[1737128680409,13.31899689,218.02,217.89,18.69899689]
[1737128680615,13.31899689,218.05,217.9,9.176]
[1737128680917,13.31899689,218.05,218.02,4.5853]
[1737128681821,13.31899689,218.05,217.9,9.176]
[1737128682015,1.5213,218.12,217.92,13.31899689]
[1737128682222,17.90389689,218.06,217.92,13.31899689]
[1737128682619,13.31899689,218.06,218.01,4.5855]
[1737128683416,13.31899689,218.06,217.9,9.176]
[1737128683417,4.5849,218.05,218.02,4.5855]
[1737128683617,13.31899689,218.03,217.9,22.49499689]
[1737128683817,13.31899689,218.03,217.91,5.38]
[1737128685120,13.31899689,218.03,218.0,4.5859]
[1737128685418,13.31899689,218.06,217.91,5.38]
[1737128685822,13.31899689,218.06,217.93,13.31899689]
[1737128686116,13.31899689,218.06,217.91,5.38]
[1737128686421,13.31899689,218.06,218.02,4.5854]
[1737128688116,13.31899689,218.06,218.03,4.5851]
[1737128688716,13.31899689,218.06,217.92,13.31899689]
[1737128688920,13.31899689,218.06,217.93,1.4601]
[1737128689425,17.90309689,218.09,217.95,13.31899689]
[1737128689625,51.63384229,218.13,217.98,13.31899689]
[1737128689923,13.31899689,218.13,218.01,13.31899689]
[1737128690121,13.31899689,218.13,218.02,5.38]
[1737128690620,13.31899689,218.13,218.03,3.004]
[1737128691730,13.31899689,218.16,218.04,13.31899689]
[1737128692325,17.90109689,218.19,218.04,13.31899689]
[1737128692526,13.31899689,218.19,218.04,13.31899689]
[1737128693432,13.31899689,218.13,218.03,4.5182]
[1737128693730,13.31899689,218.1,218.03,3.004]
[1737128693931,17.90299689,218.1,218.05,4.5847]
[1737128694132,13.31899689,218.07,218.02,5.38]
[1737128694425,13.31899689,218.13,217.96,25.24025805]
[1737128694426,13.31899689,218.04,217.96,25.24025805]
[1737128694631,13.31899689,218.04,217.91,8.4185]
[1737128695028,17.90409689,218.04,217.98,4.5862]
[1737128695229,13.31899689,218.04,217.91,21.73749689]
[1737128695528,13.31899689,218.08,217.94,13.31899689]
[1737128695728,17.90329689,218.08,217.94,13.31899689]
[1737128696324,13.31899689,218.08,217.94,13.31899689]
[1737128696727,13.31899689,218.08,217.95,1.4394]
[1737128697033,13.31899689,218.05,217.95,1.4394]
[1737128697628,13.31899689,218.05,217.96,5.38]
[1737128698122,17.90399689,218.05,217.95,6.8194]
[1737128698326,13.31899689,218.05,217.95,6.8194]
[1737128698526,1.4995,218.12,218.01,13.31899689]
[1737128698829,13.31899689,218.16,218.02,2.9377]
[1737128699027,13.31899689,218.16,218.04,13.31899689]
[1737128699229,13.31899689,218.16,218.12,4.5832]
[1737128699523,1.505,218.27,218.05,5.38]
[1737128699524,13.31899689,218.19,218.07,13.31899689]
[1737128699725,13.31899689,218.22,218.07,13.31899689]
[1737128700025,13.31899689,218.19,218.06,1.5412]
[1737128700231,13.31899689,218.16,218.06,1.5412]
[1737128700433,17.90099689,218.19,218.14,4.5829]
[1737128700632,13.31899689,218.19,218.07,13.31899689]
[1737128700833,13.31899689,218.22,218.07,13.31899689]
[1737128701034,4.5818,218.2,218.07,13.31899689]
[1737128701733,13.31899689,218.22,218.07,13.31899689]
[1737128701925,4.5815,218.21,218.07,13.31899689]